fUSD/lending_fUSD_20240421
["ID","MTS","AMOUNT","RATE_DAILY","PERIOD"]
[323114866,1713677446079,-500.0,0.00016999,2]
[323114867,1713677446088,-543.77,0.00016999,2]
[323114870,1713677446097,-500.0,0.00016999,2]
[323114872,1713677446107,-500.0,0.00016999,2]
[323114874,1713677446116,-500.0,0.00016999,2]
[323114876,1713677446125,-500.0,0.00016999,2]
[323114878,1713677446134,-500.0,0.00016999,2]
[323114880,1713677446143,-369.71,0.00016999,2]
[323114882,1713677446152,-500.0,0.00016999,2]
[323114883,1713677446161,-500.0,0.00016999,2]
[323114885,1713677446169,-500.0,0.00016999,2]
[323114887,1713677446178,-500.0,0.00016999,2]
[323114889,1713677446187,-500.0,0.00016999,2]
[323114891,1713677446196,-352.42934632,0.00016999,2]
[323114893,1713677446205,-71185.74409229,0.00017,2]
[323114896,1713677446217,-3012.477032,0.00017,2]
[323114899,1713677446241,-61557.51728384,0.00017,2]
[323115152,1713677535942,4744.2,0.00016326,10]
[323115154,1713677749062,1850.03234818,0.000273,120]
[323115156,1713677789358,814.32,0.00016,10]
[323115157,1713677861011,643.016516,0.00027,120]
[323115171,1713678204631,4447.68,0.0001611,10]
[323115189,1713678623124,500.0,0.000224,30]
[323115192,1713678631699,-155.0,0.00013406,2]
[323115193,1713678631709,-706.34979977,0.00013406,2]
[323115194,1713678631718,-687.46,0.00013407,2]
[323115195,1713678631728,-150.0,0.00014349,2]
[323115196,1713678631737,-150.0,0.00014892,2]
[323115197,1713678631746,-1634.1,0.00015275,2]
[323115198,1713678631758,-634.36,0.0001529,2]
[323115199,1713678631768,-680.35641552,0.00015298,2]
[323115200,1713678631777,-258.6,0.00015364,2]
[323115201,1713678631786,-154.72,0.00015448,2]
[323115202,1713678631796,-250.0,0.00015452,2]
[323115203,1713678631805,-181.39,0.00015511,2]
[323115204,1713678631814,-925.98,0.00015535,2]
[323115205,1713678631824,-1657.52,0.00015598,2]
[323115206,1713678631833,-687.46,0.00015671,2]
[323115207,1713678631842,-150.0,0.00015828,2]
[323115208,1713678631851,-1000.0,0.00016109,2]
[323115209,1713678631861,-39980.12313854,0.0001611,2]
[323115210,1713678631870,-942.94052487,0.0001611,2]
[323115211,1713678631879,-1040.47570977,0.0001611,2]
[323115212,1713678631890,-217.7634748,0.0001611,2]
[323115213,1713678631899,-17833.91068051,0.0001611,2]
[323115214,1713678631908,-200.0,0.000165,6]
[323115215,1713678631918,-500.0,0.000166,6]
[323115216,1713678631927,-700.0,0.000167,6]
[323115217,1713678631936,-422.21,0.00016767,2]
[323115218,1713678631946,-692.8771,0.00016797,2]
[323115219,1713678631956,-7500.0,0.00016797,2]
[323115220,1713678631965,-170.66355813,0.00016799,2]
[323115221,1713678631974,-7916.42064714,0.00016799,2]
[323115222,1713678631983,-603.70455353,0.00016799,2]
[323115223,1713678631992,-1000.0,0.000168,6]
[323115224,1713678632002,-718.74193407,0.00016847,2]
[323115225,1713678632012,-157.042114,0.00016848,2]
[323115226,1713678632022,-157.042114,0.00016848,2]
[323115227,1713678632031,-161.042114,0.00016848,2]
[323115228,1713678632039,-173.042114,0.00016848,2]
[323115229,1713678632049,-157.042114,0.00016848,2]
[323115230,1713678632059,-157.042114,0.00016848,2]
[323115231,1713678632071,-157.042114,0.00016848,2]
[323115233,1713678632081,-157.042114,0.00016848,2]
[323115235,1713678632092,-157.042114,0.00016848,2]
[323115237,1713678632103,-157.042114,0.00016848,2]
[323115240,1713678632113,-157.042114,0.00016848,2]
[323115241,1713678632123,-172.042114,0.00016848,2]
[323115243,1713678632135,-157.042114,0.00016848,2]
[323115245,1713678632146,-157.042114,0.00016848,2]
[323115247,1713678632156,-157.042114,0.00016848,2]
[323115249,1713678632166,-159.06,0.00016887,2]
[323115251,1713678632175,-1556.77,0.00016887,2]
[323115253,1713678632186,-1556.77,0.00016887,2]
[323115255,1713678632195,-1556.77,0.00016887,2]
[323115257,1713678632205,-1556.77,0.00016887,2]
[323115259,1713678632215,-1556.77,0.00016887,2]
[323115261,1713678632224,-300.0,0.00016889,2]
[323115263,1713678632233,-11481.4483866,0.00016896,2]
[323115264,1713678632243,-211.71828179,0.00016896,2]
[323115265,1713678632253,-499.4561586,0.00016896,2]
[323115266,1713678632264,-500.0,0.00016896,2]
[323115267,1713678632274,-500.0,0.00016896,2]
[323115268,1713678632284,-500.0,0.00016896,2]
[323115269,1713678632294,-436.7,0.00016896,2]
[323115270,1713678632305,-500.0,0.00016896,2]
[323115271,1713678632317,-500.0,0.00016896,2]
[323115272,1713678632327,-500.0,0.00016896,2]
[323115273,1713678632338,-500.0,0.00016896,2]
[323115274,1713678632348,-182.95,0.00016896,2]
[323115275,1713678632357,-500.0,0.00016896,2]
[323115276,1713678632367,-277.13246786,0.00016896,2]
[323115277,1713678632378,-500.0,0.00016896,2]
[323115278,1713678632388,-500.0,0.00016896,2]
[323115279,1713678632398,-500.0,0.00016896,2]
[323115280,1713678632409,-500.0,0.00016896,2]
[323115281,1713678632419,-500.0,0.00016896,2]
[323115282,1713678632429,-500.0,0.00016896,2]
[323115283,1713678632440,-372.26,0.00016896,2]
[323115284,1713678632450,-514.91,0.00016896,2]
[323115285,1713678632460,-500.0,0.00016896,2]
[323115286,1713678632469,-549.22850341,0.00016896,2]
[323115287,1713678632478,-500.0,0.00016896,2]
[323115288,1713678632487,-214.63,0.00016896,2]
[323115289,1713678632496,-556.04,0.00016896,2]
[323115290,1713678632505,-500.0,0.00016896,2]
[323115291,1713678632514,-500.0,0.00016896,2]
[323115292,1713678632524,-500.0,0.00016896,2]
[323115293,1713678632534,-500.0,0.00016896,2]
[323115294,1713678632549,-500.0,0.00016896,2]
[323115295,1713678632560,-152.58,0.00016896,2]
[323115296,1713678632571,-322.06,0.00016896,2]
[323115297,1713678632581,-500.0,0.00016896,2]
[323115298,1713678632591,-500.0,0.00016896,2]
[323115299,1713678632603,-500.0,0.00016896,2]
[323115300,1713678632612,-500.0,0.00016896,2]
[323115301,1713678632622,-500.0,0.00016896,2]
[323115302,1713678632632,-500.0,0.00016896,2]
[323115303,1713678632643,-500.0,0.00016896,2]
[323115304,1713678632653,-618.56,0.00016896,2]
[323115305,1713678632664,-500.0,0.00016896,2]
[323115306,1713678632674,-500.0,0.00016896,2]
[323115307,1713678632684,-500.0,0.00016896,2]
[323115308,1713678632695,-500.0,0.00016896,2]
[323115309,1713678632704,-603.46,0.00016896,2]
[323115310,1713678632714,-500.0,0.00016896,2]
[323115311,1713678632725,-969.38,0.00016896,2]
[323115312,1713678632735,-500.0,0.00016896,2]
[323115313,1713678632748,-500.0,0.00016896,2]
[323115314,1713678632758,-423.81,0.00016896,2]
[323115315,1713678632769,-500.0,0.00016896,2]
[323115316,1713678632779,-500.0,0.00016896,2]
[323115317,1713678632789,-500.0,0.00016896,2]
[323115318,1713678632799,-500.0,0.00016896,2]
[323115319,1713678632808,-1230.75,0.00016896,2]
[323115320,1713678632817,-686.58,0.00016896,2]
[323115321,1713678632827,-500.0,0.00016896,2]
[323115322,1713678632838,-500.0,0.00016896,2]
[323115323,1713678632848,-500.0,0.00016896,2]
[323115324,1713678632858,-500.0,0.00016896,2]
[323115325,1713678632868,-2359.55,0.00016896,2]
[323115326,1713678632879,-207.91,0.00016896,2]
[323115327,1713678632890,-500.0,0.00016896,2]
[323115328,1713678632900,-500.0,0.00016896,2]
[323115329,1713678632910,-447.96,0.00016896,2]
[323115330,1713678632919,-233.04115154,0.00016896,2]
[323115331,1713678632930,-511.85,0.00016896,2]
[323115332,1713678632939,-500.0,0.00016896,2]
[323115333,1713678632949,-379.42,0.00016896,2]
[323115334,1713678632960,-500.0,0.00016896,2]
[323115335,1713678632970,-394.24,0.00016896,2]
[323115336,1713678632979,-500.0,0.00016896,2]
[323115337,1713678632991,-500.0,0.00016896,2]
[323115338,1713678633004,-500.0,0.00016896,2]
[323115339,1713678633015,-500.0,0.00016896,2]
[323115340,1713678633026,-196.65,0.00016896,2]
[323115341,1713678633037,-221.45,0.00016896,2]
[323115342,1713678633049,-185.49,0.00016896,2]
[323115343,1713678633059,-500.0,0.00016896,2]
[323115344,1713678633070,-1289.74,0.00016896,2]
[323115345,1713678633080,-500.0,0.00016896,2]
[323115346,1713678633093,-500.0,0.00016896,2]
[323115347,1713678633104,-219.30139674,0.00016896,2]
[323115348,1713678633113,-500.0,0.00016896,2]
[323115349,1713678633124,-500.0,0.00016896,2]
[323115350,1713678633135,-464.69,0.00016896,2]
[323115351,1713678633147,-500.0,0.00016896,2]
[323115352,1713678633158,-500.0,0.00016896,2]
[323115353,1713678633169,-515.64,0.00016896,2]
[323115354,1713678633178,-500.0,0.00016896,2]
[323115355,1713678633189,-500.0,0.00016896,2]
[323115356,1713678633199,-500.0,0.00016896,2]
[323115357,1713678633209,-622.34,0.00016896,2]
[323115358,1713678633220,-500.0,0.00016896,2]
[323115359,1713678633229,-500.0,0.00016896,2]
[323115360,1713678633239,-500.0,0.00016896,2]
[323115361,1713678633250,-500.0,0.00016896,2]
[323115362,1713678633261,-1245.96,0.00016896,2]
[323115363,1713678633271,-500.0,0.00016896,2]
[323115364,1713678633280,-500.0,0.00016896,2]
[323115365,1713678633290,-500.0,0.00016896,2]
[323115366,1713678633299,-500.0,0.00016896,2]
[323115367,1713678633308,-500.0,0.00016896,2]
[323115368,1713678633318,-464.96,0.00016896,2]
[323115369,1713678633327,-500.0,0.00016896,2]
[323115370,1713678633336,-500.0,0.00016896,2]
[323115371,1713678633346,-500.0,0.00016896,2]
[323115372,1713678633355,-615.48,0.00016896,2]
[323115373,1713678633364,-500.0,0.00016896,2]
[323115374,1713678633373,-500.0,0.00016896,2]
[323115375,1713678633382,-500.0,0.00016896,2]
[323115376,1713678633392,-500.0,0.00016896,2]
[323115377,1713678633401,-500.0,0.00016896,2]
[323115378,1713678633410,-500.0,0.00016896,2]
[323115379,1713678633419,-1314.77,0.00016896,2]
[323115380,1713678633429,-500.0,0.00016896,2]
[323115381,1713678633439,-500.0,0.00016896,2]
[323115382,1713678633448,-500.0,0.00016896,2]
[323115383,1713678633458,-1393.11,0.00016896,2]
[323115384,1713678633468,-500.0,0.00016896,2]
[323115385,1713678633477,-500.0,0.00016896,2]
[323115386,1713678633487,-500.0,0.00016896,2]
[323115387,1713678633496,-310.87502941,0.00016896,2]
[323115388,1713678633766,-189.12497059,0.00016896,2]
[323115389,1713678633776,-136.81089598,0.00016896,2]
[323115390,1713678633812,-363.18910402,0.00016896,2]
[323115391,1713678633821,-500.0,0.00016896,2]
[323115392,1713678633831,-500.0,0.00016896,2]
[323115393,1713678633840,-307.19,0.00016896,2]
[323115394,1713678633849,-129.62089598,0.00016896,2]
[323115395,1713678633861,-370.37910402,0.00016896,2]
[323115396,1713678633871,-999.3,0.00016896,2]
[323115397,1713678633880,-500.0,0.00016896,2]
[323115398,1713678633890,-542.12,0.00016896,2]
[323115399,1713678633899,-312.26,0.00016896,2]
[323115400,1713678633909,-612.72,0.00016896,2]
[323115401,1713678633918,-1000.31,0.00016896,2]
[323115402,1713678633928,-500.0,0.00016896,2]
[323115403,1713678633937,-539.87,0.00016896,2]
[323115404,1713678633946,-1139.11,0.00016896,2]
[323115405,1713678633955,-622.88,0.00016896,2]
[323115406,1713678633965,-500.0,0.00016896,2]
[323115407,1713678633974,-500.0,0.00016896,2]
[323115408,1713678633984,-500.0,0.00016896,2]
[323115409,1713678633993,-500.0,0.00016896,2]
[323115410,1713678634003,-500.0,0.00016896,2]
[323115411,1713678634013,-500.0,0.00016896,2]
[323115412,1713678634023,-500.0,0.00016896,2]
[323115413,1713678634032,-457.27724128,0.00016896,2]
[323115416,1713678637785,-42.72275872,0.00016896,2]
[323115417,1713678637795,-500.0,0.00016896,2]
[323115418,1713678637805,-500.0,0.00016896,2]
[323115419,1713678637814,-500.0,0.00016896,2]
[323115420,1713678637823,-500.0,0.00016896,2]
[323115421,1713678637832,-236.74,0.00016896,2]
[323115422,1713678637841,-1242.84,0.00016896,2]
[323115423,1713678637850,-485.99,0.00016896,2]
[323115424,1713678637859,-138.16001767,0.00016896,2]
[323115425,1713678637870,-216.45998233,0.00016896,2]
[323115426,1713678637879,-500.0,0.00016896,2]
[323115427,1713678637888,-500.0,0.00016896,2]
[323115428,1713678637898,-500.0,0.00016896,2]
[323115429,1713678637907,-500.0,0.00016896,2]
[323115430,1713678637916,-500.0,0.00016896,2]
[323115431,1713678637925,-500.0,0.00016896,2]
[323115432,1713678637934,-500.0,0.00016896,2]
[323115433,1713678637944,-500.0,0.00016896,2]
[323115434,1713678637953,-500.0,0.00016896,2]
[323115435,1713678637962,-544.47939569,0.00016896,2]
[323115436,1713678637971,-500.0,0.00016896,2]
[323115437,1713678637980,-396.32,0.00016896,2]
[323115438,1713678637989,-500.0,0.00016896,2]
[323115439,1713678637999,-500.0,0.00016896,2]
[323115440,1713678638008,-88683.03062682,0.00016897,2]
[323115582,1713678639760,-500.0,0.00016896,2]
[323115583,1713678639770,-118.19645195,0.00016896,2]
[323115584,1713678639783,-315.6,0.00016896,2]
[323115585,1713678639816,-66.20354805,0.00016896,2]
[323115586,1713678639826,-448.89645195,0.00016896,2]
[323115587,1713678639871,-51.10354805,0.00016896,2]
[323115588,1713678639881,-1625.8917126,0.00016897,2]
[323115589,1713678639928,-1162.73485813,0.00016897,2]
[323115590,1713678639989,-355.72425126,0.00016897,2]
[323115591,1713678640001,-845.87355648,0.00016897,2]
[323115592,1713678640041,-5215.31709731,0.00016897,2]
[323115593,1713678640156,-666.50811388,0.00016897,2]
[323115733,1713678643017,-500.0,0.00016896,2]
[323115734,1713678643029,-500.0,0.00016896,2]
[323115735,1713678643040,-119.89560369,0.00016896,2]
[323115747,1713678709766,300.0,0.000224,30]
[323115749,1713678759919,214.56393436,0.000145,5]
[323115750,1713678760021,4169.7,0.0001611,10]
[323115900,1713679329683,3909.09,0.0001611,10]
[323115913,1713679463661,-150.0,0.00012532,2]
[323115914,1713679463681,-183.74,0.00012534,2]
[323115915,1713679463705,-673.78,0.00013583,2]
[323115916,1713679463725,-283.89545907,0.000138,2]
[323115917,1713679463747,-749.15781556,0.00015206,2]
[323115918,1713679463768,-8336.73288955,0.0001539,2]
[323115919,1713679463791,-2310.65,0.00015476,2]
[323115920,1713679463814,-618.37,0.00015484,2]
[323115921,1713679463837,-416.3823664,0.000155,2]
[323115922,1713679463861,-268.26,0.00015665,2]
[323115923,1713679463881,-200.0,0.0001577,2]
[323115924,1713679463900,-4911.0,0.00015808,2]
[323115925,1713679463925,-673.78,0.00015847,2]
[323115926,1713679463949,-224.25146942,0.00015858,2]
[323115943,1713679755161,-183.39,0.00012593,2]
[323115944,1713679755183,-163.77005438,0.00015638,2]
[323115945,1713679755206,-250.0,0.00015702,2]
[323115946,1713679755227,-2070.20924562,0.00015737,2]
[323115950,1713679800405,3664.77,0.0001611,10]
[323115971,1713679831907,-2260.69765542,0.00015737,2]
[323115972,1713679831916,-217.7634748,0.00015737,2]
[323115973,1713679831925,-851.99,0.00015738,2]
[323115974,1713679831934,-23.23585526,0.00015781,2]
[323115975,1713679832067,-131.79414474,0.00015781,2]
[323115976,1713679832076,-163.0,0.00015842,2]
[323115977,1713679832085,-500.0,0.00015842,2]
[323115978,1713679832095,-93.61853058,0.00015858,2]
[323115979,1713679832104,-149.74800411,0.0001598,2]
[323115980,1713679832121,-12.91199589,0.0001598,2]
[323115981,1713679832130,-1818.92,0.00016,2]
[323115982,1713679832139,-836.71,0.00016,2]
[323115983,1713679832148,-150.0,0.000161,2]
[323115984,1713679832158,-1449.84,0.0001611,2]
[323115985,1713679832167,-761.9675457,0.0001611,2]
[323116241,1713679840266,-481.14121731,0.0001611,2]
[323116251,1713679840350,-342.48,0.0001611,2]
[323116406,1713679842966,-465.39408861,0.0001611,2]
[323116407,1713679843178,-885.1407466,0.0001611,2]
[323116426,1713679845975,-1295.3371601,0.0001611,2]
[323116428,1713679845984,-146.34287754,0.0001611,2]
[323116431,1713679846238,-8.65712246,0.0001611,2]
[323116432,1713679846247,-558.0,0.00016411,2]
[323116433,1713679846258,-153.30086513,0.00016439,2]
[323116445,1713680271633,3435.72,0.0001611,10]
[323116459,1713680755481,3220.98,0.0001611,10]
[323116462,1713680810164,-174.38465913,0.00013111,2]
[323116463,1713680810184,-378.94447879,0.00013112,2]
[323116464,1713680810206,-87.87830863,0.00013112,2]
[323116503,1713681032092,-363.20539468,0.00013099,2]
[323116504,1713681032104,-343.14440509,0.00013099,2]
[323116505,1713681032114,-155.0,0.000131,2]
[323116506,1713681032124,-152.65559491,0.00013101,2]
[323116509,1713681032440,-579.86979008,0.00013101,2]
[323116511,1713681032452,-561.51132701,0.00013101,2]
[323116513,1713681032464,-3288.31926145,0.00013101,2]
[323116515,1713681032473,-3758.67774221,0.00013102,2]
[323116517,1713681032482,-163.77005437,0.0001312,2]
[323116519,1713681032492,-150.0,0.00013227,2]
[323116521,1713681032501,-4330.90690104,0.00013228,2]
[323116523,1713681032510,-671.39,0.00013229,2]
[323116524,1713681032519,-1250.0,0.00014,2]
[323116525,1713681032531,-163.77005437,0.00014015,2]
[323116526,1713681032540,-2000.0,0.00014838,3]
[323116527,1713681032550,-500.0,0.00014862,2]
[323116528,1713681032559,-12464.96,0.00014869,2]
[323116529,1713681032568,-162.66,0.00014895,2]
[323116530,1713681032577,-848.77,0.000149,2]
[323116531,1713681032586,-163.77005437,0.0001491,2]
[323116532,1713681032596,-200.0,0.00014918,2]
[323116533,1713681032605,-200.0,0.0001494,2]
[323116534,1713681032614,-258.38,0.00014962,2]
[323116535,1713681032624,-150.0,0.00014966,2]
[323116537,1713681032633,-154.63,0.00015038,2]
[323116539,1713681032642,-881.6,0.0001508,2]
[323116541,1713681032651,-1674.07,0.000151,2]
[323116543,1713681032660,-499.99,0.00015144,2]
[323116545,1713681032669,-153.71,0.00015185,2]
[323116547,1713681032678,-154.63,0.000153,2]
[323116549,1713681032687,-671.39,0.00015493,2]
[323116551,1713681032696,-624.5735496,0.000155,2]
[323116553,1713681032705,-154.63,0.00015561,2]
[323116555,1713681032714,-365.33,0.00015561,2]
[323116557,1713681032723,-163.77005437,0.00015805,2]
[323116559,1713681032732,-154.63,0.00015822,2]
[323116561,1713681032741,-521.64,0.00015863,2]
[323116563,1713681032751,-350.16,0.00015863,2]
[323116565,1713681032760,-909.83,0.00015945,2]
[323116567,1713681032770,-816.95,0.00015945,2]
[323116569,1713681032779,-909.83,0.00015945,2]
[323116571,1713681032788,-909.83,0.00015945,2]
[323116573,1713681032797,-907.35,0.00015945,2]
[323116575,1713681032806,-1300.0,0.00016,2]
[323116577,1713681032815,-425.19,0.00016082,2]
[323116579,1713681032824,-304.51,0.00016082,2]
[323116581,1713681032833,-302.62,0.00016082,2]
[323116583,1713681032843,-300.0,0.00016082,2]
[323116585,1713681032852,-355.61,0.00016082,2]
[323116587,1713681032864,-155.0,0.0001611,2]
[323116589,1713681032874,-150.0,0.00016201,2]
[323116591,1713681032884,-162.06383117,0.00016235,2]
[323116593,1713681032893,-73855.21052975,0.00016235,2]
[323116595,1713681032903,-755.05274,0.0001627,2]
[323116597,1713681032914,-2634.92482978,0.0001628,2]
[323116599,1713681032924,-150.0,0.00016325,2]
[323116601,1713681032934,-2242.0,0.000164,2]
[323116603,1713681032943,-210.543437,0.00016438,2]
[323116605,1713681032953,-1402.66,0.00016438,2]
[323116607,1713681032963,-374.69913487,0.00016439,2]
[323116609,1713681032972,-584.0,0.00016439,2]
[323116611,1713681032981,-150.0,0.00016444,2]
[323116613,1713681032991,-150.0,0.00016524,2]
[323116615,1713681033001,-150.0,0.00016538,2]
[323116617,1713681033010,-150.0,0.00016569,2]
[323116619,1713681033019,-150.0,0.00016617,2]
[323116622,1713681033030,-150.0,0.00016641,2]
[323116624,1713681033040,-311.085,0.0001669,2]
[323116626,1713681033049,-163.77005437,0.000167,2]
[323116628,1713681033059,-12500.0,0.000167,2]
[323116630,1713681033068,-7112.5191,0.000167,2]
[323116632,1713681033077,-294.2524327,0.00016721,2]
[323116634,1713681033086,-173.042115,0.00016748,2]
[323116636,1713681033095,-157.042115,0.00016748,2]
[323116638,1713681033104,-157.042115,0.00016748,2]
[323116640,1713681033114,-157.042115,0.00016748,2]
[323116642,1713681033124,-157.042115,0.00016748,2]
[323116644,1713681033133,-157.042115,0.00016748,2]
[323116646,1713681033143,-157.042115,0.00016748,2]
[323116648,1713681033152,-157.042115,0.00016748,2]
[323116650,1713681033162,-157.042115,0.00016748,2]
[323116652,1713681033170,-157.042115,0.00016748,2]
[323116654,1713681033181,-173.042115,0.00016748,2]
[323116656,1713681033190,-157.042115,0.00016748,2]
[323116658,1713681033199,-157.042115,0.00016748,2]
[323116660,1713681033208,-157.042115,0.00016748,2]
[323116662,1713681033217,-173.042115,0.00016748,2]
[323116664,1713681033226,-157.042115,0.00016748,2]
[323116666,1713681033235,-157.042115,0.00016748,2]
[323116667,1713681033244,-176.042115,0.00016748,2]
[323116670,1713681033254,-28260.343,0.00016785,2]
[323116671,1713681033263,-4929.76,0.00016789,2]
[323116673,1713681033272,-4929.76,0.00016789,2]
[323116675,1713681033283,-153.77,0.0001679,2]
[323116677,1713681033292,-4929.76,0.0001679,2]
[323116679,1713681033302,-4929.76,0.0001679,2]
[323116681,1713681033311,-4929.76,0.0001679,2]
[323116683,1713681033321,-151.0,0.00016792,2]
[323116685,1713681033331,-204.35085073,0.00016792,2]
[323116687,1713681033340,-151.0,0.00016792,2]
[323116689,1713681033349,-309.69679466,0.00016792,2]
[323116691,1713681033359,-156.62064814,0.00016792,2]
[323116693,1713681033368,-692.4473351,0.00016792,2]
[323116695,1713681033377,-216.53626396,0.00016792,2]
[323116697,1713681033386,-610.54997343,0.00016792,2]
[323116699,1713681033395,-181.04995257,0.00016794,2]
[323116701,1713681033405,-177.05834528,0.00016794,2]
[323116703,1713681033414,-5826.88497474,0.00016795,2]
[323116705,1713681033427,-500.0,0.00016795,2]
[323116707,1713681033438,-1149.86250347,0.00016795,2]
[323116709,1713681033451,-1136.40925582,0.00016795,2]
[323116711,1713681033462,-373.91490421,0.00016795,2]
[323116815,1713681038063,-464.19516993,0.0001679,2]
[323116816,1713681038072,-470.73716908,0.00016795,2]
[323116817,1713681038171,-542.19119268,0.00016795,2]
[323116818,1713681038182,-523.59,0.00016797,2]
[323116819,1713681038191,-500.0,0.00016797,2]
[323116820,1713681038200,-500.0,0.00016797,2]
[323116821,1713681038211,-500.0,0.00016797,2]
[323116822,1713681038220,-1194.05,0.00016797,2]
[323116823,1713681038230,-500.0,0.00016797,2]
[323116824,1713681038239,-500.0,0.00016797,2]
[323116825,1713681038249,-958.63,0.00016797,2]
[323116826,1713681038259,-1259.99,0.00016797,2]
[323116827,1713681038268,-500.0,0.00016797,2]
[323116828,1713681038277,-500.0,0.00016797,2]
[323116829,1713681038288,-229.47,0.00016797,2]
[323116830,1713681038297,-500.0,0.00016797,2]
[323116831,1713681038307,-500.0,0.00016797,2]
[323116832,1713681038316,-322.08094313,0.00016797,2]
[323116833,1713681038325,-500.0,0.00016797,2]
[323116834,1713681038334,-500.0,0.00016797,2]
[323116835,1713681038343,-151.0,0.00016798,2]
[323116836,1713681038352,-500.0,0.00016798,2]
[323116837,1713681038362,-500.0,0.00016798,2]
[323116838,1713681038372,-500.0,0.00016798,2]
[323116839,1713681038381,-500.0,0.00016798,2]
[323116840,1713681038391,-500.0,0.00016798,2]
[323116841,1713681038401,-176.09597501,0.00016798,2]
[323116842,1713681038411,-440.93550802,0.00016798,2]
[323116843,1713681038420,-928.99,0.00016798,2]
[323116844,1713681038429,-1425.62,0.00016798,2]
[323116845,1713681038438,-2261.23,0.00016798,2]
[323116847,1713681038448,-500.0,0.00016798,2]
[323116849,1713681038456,-1236.0,0.00016798,2]
[323116851,1713681038466,-657.97,0.00016798,2]
[323116852,1713681038474,-499.01590717,0.00016798,2]
[323116853,1713681038484,-500.0,0.00016798,2]
[323116854,1713681038493,-500.0,0.00016798,2]
[323116855,1713681038502,-957.66,0.00016798,2]
[323116856,1713681038512,-1335.06,0.00016798,2]
[323116857,1713681038522,-500.0,0.00016798,2]
[323116858,1713681038531,-500.0,0.00016798,2]
[323116859,1713681038541,-1091.65,0.00016798,2]
[323116861,1713681038550,-373.5,0.00016798,2]
[323116863,1713681038560,-500.0,0.00016799,2]
[323116865,1713681038569,-500.0,0.00016799,2]
[323116866,1713681038578,-500.0,0.00016799,2]
[323116868,1713681038587,-500.0,0.00016799,2]
[323116870,1713681038597,-500.0,0.00016799,2]
[323116873,1713681038606,-159.83968,0.00016799,2]
[323116874,1713681038616,-500.0,0.00016799,2]
[323116877,1713681038626,-500.0,0.00016799,2]
[323116878,1713681038635,-500.0,0.00016799,2]
[323116880,1713681038644,-500.0,0.00016799,2]
[323116882,1713681038653,-500.0,0.00016799,2]
[323116884,1713681038662,-500.0,0.00016799,2]
[323116886,1713681038672,-500.0,0.00016799,2]
[323116888,1713681038681,-197.22375415,0.00016799,2]
[323116891,1713681038692,-282.69240153,0.00016799,2]
[323116893,1713681038701,-500.0,0.00016799,2]
[323116895,1713681038710,-500.0,0.00016799,2]
[323116897,1713681038719,-500.0,0.00016799,2]
[323116899,1713681038728,-500.0,0.00016799,2]
[323116901,1713681038737,-620.29,0.00016799,2]
[323116903,1713681038746,-500.0,0.00016799,2]
[323116905,1713681038756,-500.0,0.00016799,2]
[323116907,1713681038764,-500.0,0.00016799,2]
[323116909,1713681038774,-500.0,0.00016799,2]